fUSD/lending_fUSD_20260506
["ID","MTS","AMOUNT","RATE_DAILY","PERIOD"]
[421715105,1778055080000,-607.0,0.00019208,2]
[421715099,1778055080000,-500.0,0.00019178,2]
[421715102,1778055080000,-607.0,0.00019208,2]
[421715107,1778055080000,-500.0,0.00019208,2]
[421715097,1778055080000,-159.0,0.00019116,3]
[421715115,1778055080000,-607.0,0.00019208,2]
[421715114,1778055080000,-500.0,0.00019208,2]
[421715118,1778055080000,-607.0,0.00019208,2]
[421715108,1778055080000,-607.0,0.00019208,2]
[421715111,1778055080000,-500.0,0.00019208,2]
[421715110,1778055080000,-607.0,0.00019208,2]
[421715109,1778055080000,-500.0,0.00019208,2]
[421715113,1778055080000,-150.0,0.00019208,2]
[421715116,1778055080000,-150.0,0.00019208,2]
[421715112,1778055080000,-607.0,0.00019208,2]
[421715170,1778055081000,-501.50869273,0.00020273,2]
[421715174,1778055081000,-1985.2,0.00020381,2]
[421715171,1778055081000,-500.0,0.00020273,2]
[421715175,1778055081000,-500.0,0.00020549,2]
[421715173,1778055081000,-10234.0608347,0.00020286,2]
[421715172,1778055081000,-500.0,0.00020273,2]
[421715178,1778055081000,-371.132295,0.00020687,2]
[421715167,1778055081000,-500.0,0.00020273,2]
[421715179,1778055081000,-204.019704,0.00020687,7]
[421715180,1778055081000,-284.688354,0.00020687,2]
[421715183,1778055081000,-1000.0,0.00020821,2]
[421715177,1778055081000,-413.476589,0.00020687,2]
[421715182,1778055081000,-389.18946307,0.00020821,2]
[421715184,1778055081000,-1000.0,0.00020821,2]
[421715187,1778055081000,-1887.09062624,0.00020934,2]
[421715181,1778055081000,-1000.0,0.00020821,2]
[421715188,1778055081000,-453.0,0.00021,2]
[421715185,1778055081000,-1000.0,0.00020821,2]
[421715189,1778055081000,-432.0,0.00021,2]
[421715186,1778055081000,-1000.0,0.00020821,2]
[421715169,1778055081000,-500.0,0.00020273,2]
[421715176,1778055081000,-355.026889,0.00020687,7]
[421715166,1778055081000,-431.73147682,0.00020273,2]
[421715143,1778055081000,-675.33,0.00019999,2]
[421715165,1778055081000,-500.0,0.00020273,2]
[421715190,1778055081000,-491.0,0.00021,2]
[421715144,1778055081000,-2000.0,0.0002,2]
[421715151,1778055081000,-2000.0,0.0002002,2]
[421715150,1778055081000,-2000.0,0.0002001,2]
[421715152,1778055081000,-2839.316098,0.0002003,2]
[421715145,1778055081000,-400.0,0.0002,2]
[421715146,1778055081000,-199.06317263,0.0002,2]
[421715147,1778055081000,-453.0,0.0002,2]
[421715149,1778055081000,-491.0,0.0002,2]
[421715148,1778055081000,-432.0,0.0002,2]
[421715168,1778055081000,-500.0,0.00020273,2]
[421715153,1778055081000,-177.96,0.00020037,2]
[421715155,1778055081000,-172.26,0.00020175,2]
[421715156,1778055081000,-500.0,0.00020253,2]
[421715160,1778055081000,-252347.341779,0.00020254,2]
[421715158,1778055081000,-150.0,0.00020253,2]
[421715157,1778055081000,-500.0,0.00020253,2]
[421715159,1778055081000,-754.6926585,0.00020254,2]
[421715162,1778055081000,-467.8386869,0.00020254,2]
[421715161,1778055081000,-7542.2251876,0.00020254,2]
[421715163,1778055081000,-3389.5207004,0.00020254,2]
[421715164,1778055081000,-9304.8939833,0.00020254,2]
[421715154,1778055081000,-20814.88251086,0.00020139,2]
[421715195,1778055081000,-30175.11,0.00021273,2]
[421715236,1778055081000,-11878.85235123,0.0002188,2]
[421715192,1778055081000,-5000.0,0.00021173,2]
[421715216,1778055081000,-151.0,0.0002155,2]
[421715219,1778055081000,-500.95208833,0.00021563,2]
[421715218,1778055081000,-197.28170207,0.0002155,2]
[421715221,1778055081000,-500.0,0.0002158,2]
[421715224,1778055081000,-151.0,0.00021605,2]
[421715226,1778055081000,-10272.10520533,0.0002166,2]
[421715230,1778055081000,-151.0,0.00021715,2]
[421715229,1778055081000,-10652.17309792,0.00021715,2]
[421715231,1778055081000,-11046.30350255,0.0002177,2]
[421715227,1778055081000,-151.0,0.0002166,2]
[421715215,1778055081000,-151.0,0.0002155,2]
[421715228,1778055081000,-3443.14602228,0.00021709,2]
[421715232,1778055081000,-151.0,0.0002177,2]
[421715234,1778055081000,-11455.01673214,0.00021825,2]
[421715235,1778055081000,-151.0,0.00021825,2]
[421715237,1778055081000,-151.0,0.0002188,2]
[421715240,1778055081000,-2000.0,0.00021916,2]
[421715239,1778055081000,-517.16375829,0.00021916,2]
[421715238,1778055081000,-3800.0,0.000219,7]
[421715241,1778055081000,-2000.0,0.00021916,2]
[421715242,1778055081000,-1809.24927612,0.00021916,2]
[421715191,1778055081000,-172.26,0.00021135,2]
[421715233,1778055081000,-500.95208833,0.00021825,2]
[421715217,1778055081000,-156.587,0.0002155,2]
[421715225,1778055081000,-3443.14602228,0.00021616,2]
[421715213,1778055081000,-151.0,0.0002155,2]
[421715193,1778055081000,-500.0,0.00021272,2]
[421715220,1778055081000,-2000.0,0.00021563,2]
[421715196,1778055081000,-492.11,0.00021273,2]
[421715194,1778055081000,-2414.26,0.00021273,2]
[421715197,1778055081000,-4220.8,0.00021273,2]
[421715198,1778055081000,-482.9,0.00021273,2]
[421715199,1778055081000,-177.94,0.00021295,2]
[421715200,1778055081000,-1500.0,0.00021368,2]
[421715208,1778055081000,-159.0,0.00021472,3]
[421715210,1778055081000,-1428.38747117,0.0002155,2]
[421715209,1778055081000,-578.20924308,0.0002155,2]
[421715201,1778055081000,-1461.74205325,0.00021368,2]
[421715212,1778055081000,-743.50770149,0.0002155,2]
[421715211,1778055081000,-9552.16786547,0.0002155,2]
[421715204,1778055081000,-1500.0,0.00021368,2]
[421715202,1778055081000,-1500.0,0.00021368,2]
[421715203,1778055081000,-1500.0,0.00021368,2]
[421715206,1778055081000,-164.22619886,0.00021452,2]
[421715205,1778055081000,-500.0,0.0002145,2]
[421715207,1778055081000,-211.89209251,0.00021452,2]
[421715214,1778055081000,-174.61919141,0.0002155,2]
[421715223,1778055081000,-9905.5980765,0.00021605,2]
[421715222,1778055081000,-3443.14602228,0.0002158,2]
[421715287,1778055082000,-500.95208833,0.00022688,2]
[421715280,1778055082000,-500.0,0.00022599,2]
[421715281,1778055082000,-675.33,0.00022599,2]
[421715276,1778055082000,-2500.0,0.00022464,2]
[421715273,1778055082000,-2899.592,0.0002242,2]
[421715279,1778055082000,-1500.0,0.00022546,2]
[421715277,1778055082000,-33135.002,0.000225,2]
[421715275,1778055082000,-2500.0,0.00022464,2]
[421715278,1778055082000,-177.96,0.00022508,2]
[421715289,1778055082000,-30175.11,0.00022691,2]
[421715272,1778055082000,-47459.74175328,0.0002238,2]
[421715290,1778055082000,-492.11,0.00022691,2]
[421715292,1778055082000,-500.95208833,0.00022762,2]
[421715288,1778055082000,-2414.26,0.00022691,2]
[421715282,1778055082000,-310.0,0.00022603,4]
[421715283,1778055082000,-3443.14602228,0.00022606,2]
[421715286,1778055082000,-187.78006525,0.00022646,2]
[421715284,1778055082000,-1536.04360649,0.00022646,2]
[421715285,1778055082000,-799.54513345,0.00022646,2]
[421715300,1778055082000,-3443.14602228,0.00022915,2]
[421715301,1778055082000,-151.0,0.00022919,2]
[421715302,1778055082000,-768.16583474,0.00023,2]
[421715294,1778055082000,-500.95208833,0.0002286,2]
[421715298,1778055082000,-3443.14602228,0.00022899,2]
[421715274,1778055082000,-301.723,0.0002242,2]
[421715291,1778055082000,-254.44,0.000227,14]
[421715269,1778055082000,-267.02889892,0.00022373,2]
[421715247,1778055082000,-12774.14957409,0.0002199,2]
[421715271,1778055082000,-500.0,0.00022379,2]
[421715293,1778055082000,-953.76015264,0.00022799,2]
[421715245,1778055082000,-12318.36988823,0.00021935,2]
[421715244,1778055082000,-1000.0,0.00021918,5]
[421715243,1778055082000,-5000.0,0.00021918,2]
[421715246,1778055082000,-151.0,0.00021935,2]
[421715250,1778055082000,-450.0,0.00022,2]
[421715249,1778055082000,-1000.0,0.00021998,2]
[421715248,1778055082000,-151.0,0.0002199,2]
[421715255,1778055082000,-13246.79310833,0.00022045,2]
[421715251,1778055082000,-453.0,0.00022,2]
[421715256,1778055082000,-151.0,0.00022045,2]
[421715253,1778055082000,-491.0,0.00022,2]
[421715270,1778055082000,-402.43164233,0.00022373,2]
[421715252,1778055082000,-432.0,0.00022,2]
[421715258,1778055082000,-172.26,0.00022096,2]
[421715259,1778055082000,-1481.23780761,0.00022098,2]
[421715257,1778055082000,-3443.14602228,0.00022061,2]
[421715260,1778055082000,-771.01748645,0.00022098,2]
[421715261,1778055082000,-181.08010149,0.00022098,2]
[421715265,1778055082000,-500.95208833,0.00022229,2]
[421715263,1778055082000,-151.0,0.000221,2]
[421715266,1778055082000,-3443.14602228,0.00022234,2]
[421715264,1778055082000,-3443.14602228,0.00022149,2]
[421715262,1778055082000,-13736.92445334,0.000221,2]
[421715267,1778055082000,-157.0,0.00022247,2]
[421715268,1778055082000,-1985.2,0.00022353,2]
[421715254,1778055082000,-500.95208833,0.00022032,2]
[421715299,1778055082000,-20814.88251086,0.00022911,2]
[421715295,1778055082000,-500.0,0.00022873,2]
[421715357,1778055082000,-856.0,0.00024658,2]
[421715336,1778055082000,-1700.0,0.00023835,2]
[421715335,1778055082000,-1700.0,0.00023835,2]
[421715332,1778055082000,-1700.0,0.00023835,2]
[421715329,1778055082000,-159.0,0.00023829,3]
[421715334,1778055082000,-1700.0,0.00023835,2]
[421715333,1778055082000,-1700.0,0.00023835,2]
[421715331,1778055082000,-1700.0,0.00023835,2]
[421715337,1778055082000,-1700.0,0.00023835,2]
[421715338,1778055082000,-1700.0,0.00023835,2]
[421715342,1778055082000,-432.0,0.00024,2]
[421715341,1778055082000,-453.0,0.00024,2]
[421715350,1778055082000,-209.40437684,0.0002429,2]
[421715339,1778055082000,-1668.0,0.00023835,2]
[421715344,1778055082000,-172.26,0.00024018,2]
[421715348,1778055082000,-599.60298507,0.00024289,2]
[421715345,1778055082000,-1149.80661813,0.0002421,2]
[421715351,1778055082000,-1985.2,0.00024324,2]
[421715346,1778055082000,-3286.75,0.00024239,2]
[421715349,1778055082000,-1712.93078312,0.0002429,2]
[421715353,1778055082000,-675.33,0.00024657,2]
[421715352,1778055082000,-167.81107266,0.0002455,15]
[421715354,1778055082000,-150.0,0.00024658,2]
[421715356,1778055082000,-856.0,0.00024658,2]
[421715355,1778055082000,-856.0,0.00024658,2]
[421715358,1778055082000,-856.0,0.00024658,2]
[421715296,1778055082000,-1027.43622372,0.00022877,10]
[421715347,1778055082000,-151.0,0.00024288,2]
[421715340,1778055082000,-500.0,0.00024,2]
[421715343,1778055082000,-491.0,0.00024,2]
[421715328,1778055082000,-201.93286099,0.00023742,2]
[421715297,1778055082000,-500.0,0.00022877,2]
[421715330,1778055082000,-1700.0,0.00023835,2]
[421715315,1778055082000,-500.0,0.00023354,2]
[421715314,1778055082000,-1000.0,0.00023288,15]
[421715309,1778055082000,-172.26,0.00023057,2]
[421715304,1778055082000,-432.0,0.00023,2]
[421715306,1778055082000,-3000.0,0.00023012,2]
[421715307,1778055082000,-3000.0,0.00023012,2]
[421715310,1778055082000,-1079.95910014,0.00023094,2]
[421715305,1778055082000,-491.0,0.00023,2]
[421715308,1778055082000,-553.405586,0.00023033,14]
[421715313,1778055082000,-194.72792766,0.00023194,2]
[421715311,1778055082000,-1592.87721993,0.00023194,2]
[421715303,1778055082000,-453.0,0.00023,2]
[421715316,1778055082000,-355.026889,0.00023386,14]
[421715326,1778055082000,-2000.0,0.0002372,2]
[421715312,1778055082000,-932.60764908,0.00023194,2]
[421715325,1778055082000,-501.24575372,0.00023631,2]
[421715319,1778055082000,-204.019704,0.00023386,14]
[421715321,1778055082000,-500.0,0.00023421,2]
[421715320,1778055082000,-284.688354,0.00023386,14]
[421715324,1778055082000,-2680.45515395,0.0002356,2]
[421715322,1778055082000,-7366.27310669,0.000235,30]
[421715323,1778055082000,-1356.57211453,0.0002356,2]
[421715318,1778055082000,-371.132295,0.00023386,14]
[421715317,1778055082000,-413.476589,0.00023386,14]
[421715327,1778055082000,-1651.81367706,0.00023742,2]
[421715397,1778055083000,-200.92336054,0.0002499,2]
[421715398,1778055083000,-7208.78575392,0.00025,2]
[421715388,1778055083000,-162.48,0.00024658,2]
[421715394,1778055083000,-364.04,0.00024946,7]
[421715396,1778055083000,-172.26,0.00024978,2]
[421715393,1778055083000,-216.0,0.0002493,30]
[421715389,1778055083000,-302.60699763,0.00024713,2]
[421715390,1778055083000,-320.0,0.00024715,2]
[421715411,1778055083000,-200.0,0.0002527,2]
[421715392,1778055083000,-217.15233878,0.00024838,2]
[421715395,1778055083000,-270.79,0.00024946,7]
[421715409,1778055083000,-364.04,0.00025234,30]
[421715400,1778055083000,-169.19823055,0.00025,2]
[421715410,1778055083000,-270.79,0.00025234,30]
[421715401,1778055083000,-163.8042886,0.00025,2]
[421715399,1778055083000,-2225.14502822,0.00025,2]
[421715402,1778055083000,-4844.28335509,0.00025,2]
[421715403,1778055083000,-150.37662496,0.00025,2]
[421715406,1778055083000,-447.8208636,0.00025,2]
[421715404,1778055083000,-150.0,0.00025,2]
[421715405,1778055083000,-455.43715,0.00025,2]
[421715407,1778055083000,-497.81483075,0.00025,2]
[421715413,1778055083000,-225.18697532,0.00025386,2]
[421715414,1778055083000,-150.0,0.0002544,2]
[421715391,1778055083000,-1887.09062624,0.00024727,2]
[421715408,1778055083000,-250.0,0.00025205,2]
[421715387,1778055083000,-270.79,0.00024658,2]
[421715376,1778055083000,-300.0,0.00024658,2]
[421715383,1778055083000,-482.0,0.00024658,2]
[421715412,1778055083000,-177.96,0.00025299,2]
[421715360,1778055083000,-856.0,0.00024658,2]
[421715362,1778055083000,-856.0,0.00024658,2]
[421715361,1778055083000,-856.0,0.00024658,2]
[421715359,1778055083000,-856.0,0.00024658,2]
[421715363,1778055083000,-856.0,0.00024658,2]
[421715364,1778055083000,-856.0,0.00024658,2]
[421715365,1778055083000,-856.0,0.00024658,2]
[421715368,1778055083000,-300.0,0.00024658,2]
[421715374,1778055083000,-300.0,0.00024658,2]
[421715366,1778055083000,-300.0,0.00024658,2]
[421715367,1778055083000,-300.0,0.00024658,2]
[421715371,1778055083000,-300.0,0.00024658,2]
[421715373,1778055083000,-300.0,0.00024658,2]
[421715369,1778055083000,-300.0,0.00024658,2]
[421715370,1778055083000,-300.0,0.00024658,2]
[421715372,1778055083000,-300.0,0.00024658,2]
[421715375,1778055083000,-300.0,0.00024658,2]
[421715378,1778055083000,-300.0,0.00024658,2]
[421715386,1778055083000,-364.04,0.00024658,2]
[421715381,1778055083000,-300.0,0.00024658,2]
[421715385,1778055083000,-162.27,0.00024658,2]
[421715379,1778055083000,-300.0,0.00024658,2]
[421715377,1778055083000,-300.0,0.00024658,2]
[421715384,1778055083000,-1000.0,0.00024658,2]
[421715382,1778055083000,-300.0,0.00024658,2]
[421715415,1778055083000,-162.48,0.0002544,7]
[421715380,1778055083000,-300.0,0.00024658,2]
[421715418,1778055083000,-52503.81409758,0.000255,2]
[421715446,1778055083000,-310.0,0.00026419,7]
[421715453,1778055083000,-550.0,0.00026582,2]
[421715448,1778055083000,-550.0,0.00026582,2]
[421715447,1778055083000,-242.15909246,0.00026482,2]
[421715449,1778055083000,-550.0,0.00026582,2]
[421715451,1778055083000,-550.0,0.00026582,2]
[421715450,1778055083000,-550.0,0.00026582,2]
[421715452,1778055083000,-550.0,0.00026582,2]
[421715455,1778055083000,-550.0,0.00026582,2]
[421715466,1778055083000,-217.0,0.0002687,2]
[421715465,1778055083000,-150.0,0.0002687,2]
[421715456,1778055083000,-610.0,0.00026582,2]
[421715462,1778055083000,-150.0,0.0002687,2]
[421715463,1778055083000,-150.0,0.0002687,2]
[421715461,1778055083000,-150.0,0.0002687,2]
[421715457,1778055083000,-364.04,0.00026676,7]
[421715458,1778055083000,-270.79,0.00026676,7]
[421715464,1778055083000,-150.0,0.0002687,2]
[421715459,1778055083000,-550.0,0.00026849,2]
[421715460,1778055083000,-150.0,0.0002687,2]
[421715467,1778055083000,-5700.0,0.000269,9]
[421715470,1778055083000,-4317.2674768,0.00027,2]
[421715471,1778055083000,-2000.0,0.00027,2]
[421715472,1778055083000,-150.0,0.00027006,2]
[421715419,1778055083000,-364.04,0.00025523,2]
[421715443,1778055083000,-450.0,0.00026301,2]
[421715469,1778055083000,-270.79,0.00026964,30]
[421715468,1778055083000,-364.04,0.00026964,30]
[421715445,1778055083000,-270.79,0.00026388,2]
[421715416,1778055083000,-500.0,0.00025464,2]
[421715454,1778055083000,-550.0,0.00026582,2]
[421715417,1778055083000,-500.0,0.00025499,2]
[421715420,1778055083000,-270.79,0.00025523,2]
[421715422,1778055083000,-5219.24713459,0.00025683,2]
[421715424,1778055083000,-350.0,0.00025753,2]
[421715431,1778055083000,-233.51889341,0.00025934,2]
[421715423,1778055083000,-15595.63537627,0.00025683,2]
[421715425,1778055083000,-450.0,0.00025767,2]
[421715427,1778055083000,-482.9,0.00025786,2]
[421715429,1778055083000,-270.79,0.00025811,7]
[421715428,1778055083000,-364.04,0.00025811,7]
[421715430,1778055083000,-2000.0,0.00025876,2]
[421715421,1778055083000,-151.0,0.00025657,2]
[421715438,1778055083000,-159.0,0.00026186,3]
[421715426,1778055083000,-4220.8,0.00025786,2]
[421715444,1778055083000,-364.04,0.00026388,2]
[421715435,1778055083000,-364.04,0.00026099,30]
[421715437,1778055083000,-500.0,0.0002616,2]
[421715432,1778055083000,-172.26,0.00025939,2]
[421715436,1778055083000,-270.79,0.00026099,30]
[421715433,1778055083000,-550.0,0.00026,2]
[421715439,1778055083000,-150.0,0.00026223,2]
[421715442,1778055083000,-1985.2,0.00026296,2]
[421715440,1778055083000,-162.48,0.00026223,30]
[421715441,1778055083000,-500.0,0.00026228,2]
[421715434,1778055083000,-953.7601526,0.00026062,2]
[421715496,1778055084000,-270.79,0.00027253,2]
[421715510,1778055084000,-650.0,0.00027397,5]
[421715500,1778055084000,-675.33,0.00027396,2]
[421715504,1778055084000,-500.0,0.00027397,2]
[421715498,1778055084000,-716.52947103,0.000273,30]
[421715506,1778055084000,-150.0,0.00027397,2]
[421715516,1778055084000,-1000.0,0.00027397,45]
[421715517,1778055084000,-500.0,0.00027399,2]
[421715495,1778055084000,-364.04,0.00027253,2]
[421715505,1778055084000,-500.0,0.00027397,2]
[421715508,1778055084000,-203.08154012,0.00027397,2]
[421715509,1778055084000,-1500.0,0.00027397,2]
[421715511,1778055084000,-482.0,0.00027397,2]
[421715513,1778055084000,-6538.76,0.00027397,10]
[421715515,1778055084000,-4540.81,0.00027397,10]
[421715512,1778055084000,-1000.0,0.00027397,20]
[421715514,1778055084000,-5448.97,0.00027397,10]
[421715519,1778055084000,-65821.41801494,0.000274,7]
[421715518,1778055084000,-521.16,0.000274,7]
[421715503,1778055084000,-500.0,0.00027397,2]
[421715520,1778055084000,-7910.75198506,0.000274,7]
[421715507,1778055084000,-150.0,0.00027397,2]
[421715494,1778055084000,-342.0,0.00027222,2]
[421715482,1778055084000,-675.33,0.00027086,2]
[421715497,1778055084000,-381.29884027,0.00027297,2]
[421715521,1778055084000,-364.04,0.00027541,7]
[421715473,1778055084000,-162.48,0.00027006,2]
[421715477,1778055084000,-621.78829552,0.00027028,2]
[421715475,1778055084000,-500.0,0.00027014,2]
[421715476,1778055084000,-152.15955082,0.00027026,2]
[421715474,1778055084000,-2562.227663,0.0002701,2]
[421715479,1778055084000,-1000.0,0.00027029,2]
[421715490,1778055084000,-650.0,0.00027222,2]
[421715481,1778055084000,-251.11897888,0.0002703,2]
[421715478,1778055084000,-1000.0,0.00027029,2]
[421715489,1778055084000,-650.0,0.00027222,2]
[421715485,1778055084000,-929.0,0.00027123,2]
[421715486,1778055084000,-501.0,0.00027137,2]
[421715483,1778055084000,-150.0,0.00027123,20]
[421715488,1778055084000,-650.0,0.00027222,2]
[421715480,1778055084000,-416.1062653,0.00027029,2]
[421715487,1778055084000,-1896.0,0.00027204,5]
[421715484,1778055084000,-929.0,0.00027123,2]
[421715492,1778055084000,-650.0,0.00027222,2]
[421715493,1778055084000,-650.0,0.00027222,2]
[421715491,1778055084000,-650.0,0.00027222,2]
[421715499,1778055084000,-716.52947102,0.000273,30]
[421715502,1778055084000,-500.0,0.00027397,2]
[421715501,1778055084000,-151.0,0.00027397,7]
[421715522,1778055084000,-270.79,0.00027541,7]
[421715542,1778055084000,-300.0,0.00027855,2]
[421715533,1778055084000,-150.0,0.00027789,2]
[421715551,1778055084000,-600.0,0.00028,2]
[421715554,1778055084000,-276.04,0.00028,2]
[421715557,1778055084000,-10000.0,0.00028,30]
[421715549,1778055084000,-45918.75160327,0.00028,2]
[421715556,1778055084000,-276.04,0.00028,2]
[421715555,1778055084000,-276.04,0.00028,2]
[421715532,1778055084000,-162.48,0.00027788,7]
[421715569,1778055084000,-250.0,0.00028282,2]
[421715560,1778055084000,-1985.2,0.00028267,2]
[421715561,1778055084000,-501.0,0.00028274,3]
[421715550,1778055084000,-162.55277151,0.00028,7]
[421715558,1778055084000,-270.0455652,0.00028126,2]
[421715568,1778055084000,-250.0,0.00028282,2]
[421715562,1778055084000,-250.0,0.00028282,2]
[421715565,1778055084000,-250.0,0.00028282,2]
[421715564,1778055084000,-250.0,0.00028282,2]
[421715566,1778055084000,-250.0,0.00028282,2]
[421715567,1778055084000,-250.0,0.00028282,2]
[421715571,1778055084000,-325.31061309,0.00028324,2]
[421715570,1778055084000,-232.0,0.00028282,2]
[421715573,1778055084000,-343.29292514,0.00028456,2]
[421715572,1778055084000,-15682.15923141,0.00028456,2]
[421715563,1778055084000,-250.0,0.00028282,2]
[421715552,1778055084000,-276.04,0.00028,2]
[421715559,1778055084000,-500.0,0.00028173,5]
[421715553,1778055084000,-276.04,0.00028,2]
[421715534,1778055084000,-500.0,0.000278,7]
[421715531,1778055084000,-501.0,0.00027705,2]
[421715548,1778055084000,-661.22043059,0.00027945,5]
[421715523,1778055084000,-260.4103811,0.00027578,2]
[421715526,1778055084000,-212293.7066732,0.00027651,2]
[421715525,1778055084000,-500.0,0.0002765,2]
[421715528,1778055084000,-754.6926585,0.00027655,2]
[421715527,1778055084000,-40053.6351058,0.00027651,2]
[421715530,1778055084000,-336.83,0.000277,2]
[421715529,1778055084000,-10234.0608347,0.00027676,2]
[421715536,1778055084000,-364.04,0.0002783,30]
[421715524,1778055084000,-4003.0,0.00027616,2]
[421715537,1778055084000,-270.79,0.0002783,30]
[421715535,1778055084000,-500.0,0.00027825,15]
[421715547,1778055084000,-448.0,0.00027855,2]
[421715545,1778055084000,-300.0,0.00027855,2]
[421715540,1778055084000,-300.0,0.00027855,2]
[421715546,1778055084000,-300.0,0.00027855,2]
[421715544,1778055084000,-300.0,0.00027855,2]
[421715543,1778055084000,-300.0,0.00027855,2]
[421715539,1778055084000,-300.0,0.00027855,2]
[421715538,1778055084000,-4927.4593,0.00027845,2]
[421715541,1778055084000,-300.0,0.00027855,2]
[421715596,1778055085000,-380.52932165,0.000285,7]
[421715594,1778055085000,-3965.956853,0.00016856,2]
[421715593,1778055085000,-581.72491626,0.000285,7]
[421715595,1778055085000,-5159.81188751,0.000285,7]
[421715597,1778055085000,-6227.30224195,0.000285,7]
[421715598,1778055085000,-4536.56224689,0.000285,7]
[421715604,1778055085000,-140.27725922,0.0002863,2]
[421715606,1778055085000,-500.0,0.0002866,16]
[421715600,1778055085000,-159.0,0.00028543,3]
[421715599,1778055085000,-1887.09062624,0.00028521,2]
[421715602,1778055085000,-162.48,0.00028571,30]
[421715603,1778055085000,-180.53,0.0002863,2]
[421715605,1778055085000,-33.03274078,0.0002863,2]
[421715607,1778055085000,-180.53,0.00028661,7]
[421715608,1778055085000,-280.03725112,0.00028674,2]
[421715601,1778055085000,-158.02,0.00028571,2]
[421715590,1778055085000,-47873.97019315,0.000285,7]
[421715609,1778055085000,-180.53,0.00028693,30]
[421715588,1778055085000,-500.0,0.00028499,2]
[421715576,1778055085000,-369.98931999,0.00028456,2]
[421715577,1778055085000,-568.92356,0.00028456,2]
[421715574,1778055085000,-3366.73601876,0.00028456,2]
[421715575,1778055085000,-254.14013485,0.00028456,2]
[421715578,1778055085000,-229.64132071,0.00028456,2]
[421715580,1778055085000,-92.13667929,0.00028474,2]
[421715581,1778055085000,-1907.86332071,0.00028474,2]
[421715589,1778055085000,-3668.90067952,0.000285,7]
[421715579,1778055085000,-150.0,0.00028473,5]
[421715591,1778055085000,-1571.39301249,0.000285,7]
[421715583,1778055085000,-2000.0,0.00028474,2]
[421715582,1778055085000,-2000.0,0.00028474,2]
[421715584,1778055085000,-2000.0,0.00028474,2]
[421715585,1778055085000,-2000.0,0.00028474,2]
[421715586,1778055085000,-2000.0,0.00028474,2]
[421715587,1778055085000,-1571.0,0.00028474,2]
[421715592,1778055085000,-3731.97550058,0.000285,7]
[421715610,1778055085000,-1000.0,0.00028721,5]
[421715635,1778055085000,-162.55277151,0.00029,7]
[421715616,1778055085000,-180.53,0.00028788,30]
[421715636,1778055085000,-180.53,0.0002901,2]
[421715634,1778055085000,-2473.43551206,0.00029,2]
[421715637,1778055085000,-250.0,0.00029021,5]
[421715641,1778055085000,-180.53,0.00029105,2]
[421715642,1778055085000,-180.53,0.00029137,7]
[421715639,1778055085000,-180.53,0.00029074,30]
[421715643,1778055085000,-180.53,0.00029169,30]
[421715644,1778055085000,-224.0,0.00029176,2]
[421715638,1778055085000,-180.53,0.00029042,7]
[421715633,1778055085000,-473.0,0.00028996,2]
[421715640,1778055085000,-173.31,0.00029082,2]
[421715645,1778055085000,-180.53,0.00029201,2]
[421715648,1778055085000,-173.33,0.00029232,7]
[421715647,1778055085000,-180.54,0.00029232,7]
[421715612,1778055085000,-152.0,0.00028741,3]